bitfinex/quotes_ETHUSD_20250411
["timestamp","ask_amount","ask_price","bid_price","bid_amount"]
[1744402937253,6.37176,1569.5,1569.0,12.74664]
[1744402937254,6.415,1569.4,1569.0,12.74664]
[1744402937454,6.415,1569.4,1569.1,6.37287]
[1744402938183,6.415,1569.4,1569.0,6.37341]
[1744402939309,6.415,1569.4,1569.0,12.74675]
[1744402939496,0.6415,1569.3,1569.0,12.74675]
[1744402939991,0.6415,1569.3,1569.0,6.37334]
[1744402940291,0.6415,1569.3,1569.0,12.74668]
[1744402940605,0.6415,1569.3,1569.0,6.37334]
[1744402943275,0.6415,1569.3,1569.0,3.0]
[1744402943477,6.37311,1569.1,1568.7,6.37455]
[1744402943809,6.37311,1569.1,1568.7,12.74913]
[1744402943810,7.324311,1569.0,1568.7,12.74913]
[1744402943966,7.324311,1569.0,1568.7,12.74912]
[1744402945407,6.687,1569.0,1568.8,12.74845]
[1744402945613,6.687,1569.0,1568.8,6.37418]
[1744402949375,6.687,1569.0,1568.8,12.74837]
[1744402949808,6.687,1569.0,1568.8,6.37418]
[1744402950615,6.687,1569.0,1568.8,12.74835]
[1744402952512,6.687,1569.0,1568.9,6.37389]
[1744402955515,6.687,1569.0,1568.8,7.13697]
[1744402955680,6.687,1569.0,1568.8,3.0]
[1744402955885,7.993027,1569.0,1568.7,6.37456]
[1744402960031,14.366517,1569.0,1568.6,10.61083861]
[1744402960225,0.581,1568.9,1568.7,3.0]
[1744402960764,0.581,1568.9,1568.6,6.84799861]
[1744402961038,6.95497,1568.9,1568.5,15.75096]
[1744402961998,0.581,1569.1,1568.8,6.37413]
[1744402962232,6.688,1569.0,1568.8,12.7482]
[1744402963232,6.689,1568.9,1568.8,12.7482]
[1744402964099,0.581,1569.1,1568.8,12.7482]
[1744402964325,1.27638,1569.1,1568.8,12.7482]
[1744402964625,6.689,1569.0,1568.8,12.7482]
[1744402964792,6.688,1568.9,1568.8,12.7482]
[1744402964993,6.688,1569.0,1568.8,14.24071046]
[1744402965206,6.688,1569.0,1568.8,22.11773151]
[1744402965390,6.688,1569.0,1568.9,6.37355]
[1744402967107,6.688,1569.0,1568.8,9.374]
[1744402967720,6.688,1569.0,1568.8,15.74817]
[1744402969159,6.688,1569.0,1568.9,6.37389]
[1744402969305,6.688,1569.0,1568.9,7.948679]
[1744402969956,50.28,1569.3,1569.0,6.37334]
[1744402970250,6.517,1569.2,1569.0,12.74668]
[1744402970633,6.517,1569.2,1569.1,6.37308]
[1744402970815,49.699,1569.3,1569.1,6.37308]
[1744402971036,49.699,1569.3,1569.2,6.37267]
[1744402971235,56.216,1569.3,1569.2,9.37267]
[1744402971644,0.9744877,1569.9,1569.4,0.7777]
[1744402971860,6.517,1569.8,1569.5,6.37126]
[1744402972647,6.517,1569.8,1569.5,12.74257]
[1744402972823,6.517,1569.8,1569.5,6.37126]
[1744402973147,6.37058,1569.8,1569.4,6.37174]
[1744402973345,6.7637077,1569.9,1569.8,6.37023]
[1744402973346,0.3934877,1569.9,1569.8,6.37023]
[1744402973549,0.3934877,1569.9,1569.7,6.37047]
[1744402973716,0.3934877,1569.9,1569.7,12.74097]
[1744402974116,0.3934877,1569.9,1569.7,6.37047]
[1744402974740,0.3934877,1569.9,1569.6,6.37094]
[1744402974741,0.9744877,1569.9,1569.6,6.37094]
[1744402975044,2.34586447,1569.9,1569.6,6.37094]
[1744402975251,2.34586447,1569.9,1569.6,12.74188]
[1744402975934,0.9744877,1569.9,1569.7,12.74111]
[1744402976252,0.9744877,1569.9,1569.7,6.3705]
[1744402976874,0.9744877,1569.9,1569.6,6.37099]
[1744402977355,7.3443277,1569.9,1569.6,6.37099]
[1744402978057,7.3443277,1569.9,1569.5,16.21697648]
[1744402978265,7.3443277,1569.9,1569.5,0.47421648]
[1744402978266,0.73443277,1569.8,1569.5,0.47421648]
[1744402978434,0.73443277,1569.8,1569.4,6.37176]
[1744402978435,12.74101,1569.8,1569.4,6.37176]
[1744402978636,6.516,1569.7,1569.4,6.37172]
[1744402979134,6.516,1569.7,1569.4,12.74344]
[1744402980769,6.516,1569.7,1569.5,6.37138]
[1744402981877,7.3443277,1569.9,1569.6,6.37103]
[1744402982057,6.515,1569.8,1569.6,6.37103]
[1744402982266,8.71570847,1569.9,1569.6,6.37103]
[1744402982478,6.515,1569.7,1569.6,6.37103]
[1744402982676,8.71570847,1569.9,1569.6,6.37103]
[1744402982831,6.515,1569.7,1569.6,6.37103]
[1744402983033,2.34586847,1569.9,1569.6,6.37103]
[1744402983264,2.34586847,1569.9,1569.6,6.37092]
[1744402983465,6.515,1569.8,1569.7,12.74102]
[1744402984151,0.3934877,1569.9,1569.7,12.74102]
[1744402984463,6.515,1569.8,1569.7,12.74102]
[1744402985339,6.515,1569.8,1569.7,6.37051]
[1744402985544,6.515,1569.8,1569.6,6.37092]
[1744402985741,0.3934877,1569.9,1569.6,12.65498621]
[1744402985941,0.3934877,1569.9,1569.8,6.37023]
[1744402986668,0.3934877,1569.9,1569.6,12.74187]
[1744402986975,6.37028,1569.8,1569.5,6.37142]
[1744402987335,6.37089,1569.7,1569.3,7.16628]
[1744402987536,6.515,1569.6,1569.3,7.16628]
[1744402987874,12.88609,1569.6,1569.3,7.16628]
[1744402988577,19.25744,1569.6,1569.3,3.0]
[1744402988868,6.95245,1569.5,1569.3,3.0]
[1744402989042,13.32417,1569.5,1569.1,7.16015]
[1744402989248,6.37247,1569.3,1569.0,10.63871595]
[1744402989460,6.515,1569.2,1569.0,10.63871595]
[1744402990071,6.515,1569.2,1569.0,17.01208595]
[1744402990271,6.515,1569.2,1569.1,6.37308]
[1744402990971,6.515,1569.2,1569.0,10.63871595]
[1744402991178,6.515,1569.2,1569.1,6.37308]
[1744402991553,6.515,1569.6,1569.4,6.37169]
[1744402992178,6.515,1569.6,1569.2,0.8038]
[1744402992179,6.515,1569.6,1569.3,6.37226]
[1744402993238,6.515,1569.6,1569.3,6.37214]
[1744402994867,12.88631,1569.6,1569.2,6.37258]
[1744402995073,7.660101,1569.5,1569.2,6.37258]
[1744402995479,6.515,1569.6,1569.3,6.37202]
[1744402995677,6.515,1569.6,1569.3,12.7441]
[1744402995886,6.515,1569.6,1569.3,6.37202]
[1744402996908,6.515,1569.6,1569.3,12.74412]
[1744402997073,6.515,1569.6,1569.3,6.37202]
[1744402998793,6.515,1569.6,1569.3,12.74412]
[1744402998960,6.515,1569.6,1569.3,6.37202]
[1744402999156,14.811697,1569.6,1569.3,6.37202]
[1744403000760,6.579,1569.5,1569.3,6.37202]
[1744403000959,6.579,1569.5,1569.4,7.18696]
[1744403001388,6.37069,1569.7,1569.4,7.18696]
[1744403001585,6.579,1569.5,1569.4,0.8151]
[1744403001889,6.579,1569.5,1569.3,12.74416]
[1744403001890,6.579,1569.5,1569.3,6.37202]
[1744403002778,6.579,1569.5,1569.3,6.86025495]
[1744403002978,21.19823,1569.5,1569.1,6.37287]
[1744403003184,13.53157,1569.5,1569.1,6.37287]
[1744403003386,19.90332,1569.5,1569.1,6.37287]
[1744403003698,6.579,1569.4,1569.1,6.37287]
[1744403003879,12.95109,1569.4,1569.1,3.0]
[1744403004082,12.95109,1569.4,1569.1,9.37295]
[1744403005692,21.313446,1569.4,1569.1,6.37295]
[1744403005891,21.313356,1569.4,1569.1,6.37295]
[1744403006924,14.941356,1569.4,1569.1,6.37295]
[1744403008806,6.37282,1569.2,1568.9,0.48823607]
[1744403009006,0.637282,1569.1,1568.8,16.86529215]
[1744403009307,6.579,1569.0,1568.9,9.37389]
[1744403013091,6.579,1569.0,1568.9,9.86203333]
[1744403014695,6.579,1569.0,1568.9,3.48814333]
[1744403016015,6.579,1569.0,1568.9,9.86203333]
[1744403016382,6.579,1569.0,1568.9,10.63213333]
[1744403016638,6.579,1569.0,1568.9,13.38186388]
[1744403018726,6.579,1569.0,1568.9,10.63213333]
[1744403023033,6.579,1569.0,1568.9,10.98841372]
[1744403024336,6.579,1569.0,1568.9,10.63213333]
[1744403025842,6.579,1569.0,1568.9,10.98851447]
[1744403027403,6.58,1569.2,1569.1,9.37297]
[1744403029849,6.58,1569.2,1569.0,10.49051215]
[1744403030053,7.875241,1569.2,1569.0,6.37341]
[1744403031049,0.581,1569.1,1569.0,9.37341]
[1744403031234,6.58,1569.2,1569.0,9.37341]
[1744403032851,6.58,1569.2,1569.0,15.74679]
[1744403034656,6.447,1569.1,1569.0,15.74679]
[1744403034866,6.447,1569.1,1569.0,16.1037698]
[1744403036657,0.581,1569.3,1569.0,16.1037698]
[1744403036865,6.447,1569.3,1569.2,10.48955215]
[1744403037156,6.447,1569.6,1569.4,6.37172]
[1744403037455,6.447,1569.6,1569.5,6.37145]
[1744403037659,6.447,1569.6,1569.5,7.12905]
[1744403037822,49.691,1569.7,1569.5,15.26208722]
[1744403038027,49.691,1569.7,1569.6,10.48814215]
[1744403038559,50.272,1569.7,1569.5,6.37125]
[1744403039054,56.64278,1569.7,1569.2,10.48971215]
[1744403039257,56.64269,1569.7,1569.2,10.48971215]
[1744403039457,6.37119,1569.6,1569.2,16.86232215]
[1744403040051,6.37119,1569.6,1569.3,6.37226]
[1744403041078,56.64269,1569.7,1569.3,12.74452]
[1744403041271,63.01351,1569.7,1569.3,6.37215]
[1744403042280,50.272,1569.7,1569.5,6.37131]
[1744403042478,49.691,1569.7,1569.5,6.37131]
[1744403042977,6.446,1569.6,1569.5,6.37131]
[1744403043860,6.446,1569.6,1569.5,6.96422484]
[1744403044490,6.446,1569.6,1569.5,7.15261]
[1744403050855,49.691,1569.7,1569.6,6.37104]
[1744403051184,0.3934877,1569.9,1569.8,6.37023]
[1744403051549,0.3934877,1569.9,1569.6,10.48812215]
[1744403051745,0.9744877,1569.9,1569.6,6.37094]
[1744403051983,0.9744877,1569.9,1569.6,10.48804215]
[1744403052390,0.9744877,1569.9,1569.7,6.37049]
[1744403052583,0.9744877,1569.9,1569.7,12.74104]
[1744403053590,0.3934877,1569.9,1569.8,6.37023]
[1744403054196,0.3934877,1569.9,1569.7,8.05630422]
[1744403054371,0.3934877,1569.9,1569.7,6.37049]
[1744403054696,0.3934877,1569.9,1569.7,12.741]
[1744403055270,0.3934877,1569.9,1569.8,6.37023]
[1744403055470,0.3934877,1569.9,1569.8,7.17903]
[1744403055909,0.3934877,1569.9,1569.8,6.37023]
[1744403057008,0.3934877,1569.9,1569.7,13.5498]
[1744403057194,0.3934877,1569.9,1569.7,0.8088]
[1744403057359,0.581,1569.8,1569.6,6.37091]
[1744403058398,0.581,1569.8,1569.6,12.74185]
[1744403058595,0.3934877,1569.9,1569.7,6.37025]
[1744403058799,0.3934877,1569.9,1569.8,6.37023]
[1744403059178,0.3934877,1569.9,1569.8,7.14283]
[1744403060265,0.3934877,1569.9,1569.8,12.65966347]
[1744403062295,0.3934877,1569.9,1569.8,8.54256132]
[1744403062471,0.3934877,1569.9,1569.8,12.65966347]
[1744403062675,0.3934877,1569.9,1569.8,15.72336147]
[1744403062988,0.3934877,1569.9,1569.7,6.85448315]
[1744403063188,6.947,1569.8,1569.5,7.20049]
[1744403063396,6.947,1569.8,1569.6,6.37093]
[1744403063593,6.947,1569.8,1569.6,12.74187]
[1744403064879,6.366,1569.8,1569.7,6.37064]
[1744403065602,6.366,1569.8,1569.6,6.37093]
[1744403066482,6.366,1569.8,1569.6,12.74187]
[1744403068109,6.366,1569.8,1569.6,6.37093]
[1744403068308,6.366,1569.8,1569.6,12.74186]
[1744403068508,6.366,1569.8,1569.6,6.37093]
[1744403070299,6.366,1569.8,1569.6,12.74187]
[1744403070813,6.366,1569.8,1569.6,12.74186]
[1744403071123,6.366,1569.8,1569.6,6.37093]
[1744403075623,6.366,1569.8,1569.5,6.37139]
[1744403075827,0.581,1569.7,1569.5,6.37139]
[1744403079334,6.367,1569.6,1569.5,6.37139]
[1744403081355,6.367,1569.6,1569.4,3.0]
[1744403081506,12.73816,1569.6,1569.3,13.22490567]
[1744403081707,12.73816,1569.6,1569.3,6.85276567]
[1744403081924,12.73816,1569.6,1569.3,13.22490567]
[1744403083444,19.10936,1569.6,1569.3,6.85276567]
[1744403083617,14.707151,1569.6,1569.3,0.48063567]
[1744403083819,6.37145,1569.5,1569.2,17.69116215]
[1744403084006,6.37145,1569.5,1569.2,11.31863215]
[1744403084206,6.37145,1569.5,1569.2,10.48963215]
[1744403084840,6.37145,1569.5,1569.2,10.9652447]
[1744403085832,6.37145,1569.5,1569.2,17.3378147]
[1744403087243,6.37145,1569.5,1569.2,10.9652447]
[1744403087539,6.95245,1569.5,1569.2,10.9652447]
[1744403088741,13.32414,1569.5,1569.2,10.9652447]
[1744403089040,15.4901531,1569.5,1569.2,10.9652447]
[1744403089243,9.1184631,1569.5,1569.2,10.9652447]
[1744403089438,6.367,1569.6,1569.4,6.37186]
[1744403089745,6.367,1569.6,1569.4,6.37174]
[1744403091413,6.367,1569.6,1569.4,16.86058215]
[1744403093345,6.367,1569.6,1569.4,10.48884215]
[1744403095958,6.367,1569.6,1569.4,6.37174]
[1744403098254,6.367,1569.6,1569.3,13.50794]
[1744403098555,6.367,1569.6,1569.3,15.31800547]
[1744403099335,6.367,1569.6,1569.4,6.37182]
[1744403100063,6.367,1569.6,1569.4,12.74357]
[1744403100229,6.367,1569.6,1569.4,16.86067215]
[1744403100431,6.367,1569.6,1569.5,6.37145]
[1744403100644,6.367,1569.6,1569.4,10.48885215]
[1744403100959,6.367,1569.6,1569.4,16.86061215]
[1744403101459,6.367,1569.6,1569.4,10.48885215]
[1744403103266,6.367,1569.6,1569.4,16.86058215]
[1744403103427,6.367,1569.6,1569.4,12.43226691]
[1744403103626,6.367,1569.6,1569.5,6.37145]
[1744403104729,6.367,1569.6,1569.4,18.80398691]
[1744403105951,6.367,1569.6,1569.4,12.43237691]
[1744403106267,6.367,1569.6,1569.4,18.80411691]
[1744403106966,6.367,1569.6,1569.4,12.43227691]
[1744403107262,6.367,1569.6,1569.4,16.79726079]
[1744403108164,12.74066,1569.8,1569.5,0.8283]
[1744403108370,6.279,1569.8,1569.7,8.48077603]
[1744403109131,6.279,1569.8,1569.7,8.95064299]
[1744403109326,6.279,1569.8,1569.7,6.84028696]
[1744403110436,6.279,1569.8,1569.7,0.46986696]
[1744403110631,6.279,1569.8,1569.6,14.85207603]
[1744403112670,0.3934877,1569.9,1569.8,6.37023]
[1744403112870,0.3934877,1569.9,1569.8,8.54428907]
[1744403113031,0.3934877,1569.9,1569.8,9.13774994]
[1744403114172,0.3934877,1569.9,1569.8,9.94004994]
[1744403115359,0.3934877,1569.9,1569.8,11.9416767]
[1744403115668,0.3934877,1569.9,1569.8,14.85845113]
[1744403115872,0.3934877,1569.9,1569.8,14.79474809]
[1744403116276,0.05,1570.4,1570.3,6.3682]
[1744403116480,0.05,1570.4,1570.3,11.23718279]
[1744403116678,0.581,1570.3,1569.9,6.36978]
[1744403116868,0.06367192,1570.2,1570.0,6.36939]
[1744403117566,1.33567192,1570.3,1570.0,6.36939]
[1744403117881,7.70391192,1570.3,1570.0,6.36939]
[1744403118239,1.33567192,1570.3,1570.0,12.73868]
[1744403118435,1.33567192,1570.3,1570.0,6.36929]
[1744403118633,7.70397192,1570.3,1570.0,6.36929]
[1744403118838,7.70397192,1570.3,1569.8,9.37017]
[1744403118839,6.95017,1570.1,1569.8,9.37017]
[1744403119073,6.278,1570.0,1569.8,9.37017]
[1744403120767,6.278,1570.0,1569.8,12.74029]
[1744403121082,6.278,1570.0,1569.8,6.37012]
[1744403121674,6.278,1570.0,1569.9,6.36983]
[1744403123675,6.278,1570.0,1569.8,6.3701]
[1744403123881,6.278,1570.0,1569.8,12.74021]
[1744403124382,7.02757192,1570.0,1569.7,6.37053]
[1744403124676,6.36994,1569.9,1569.6,9.85955779]
[1744403124878,6.43361192,1569.9,1569.6,16.23049779]
[1744403125181,6.43361192,1569.9,1569.6,16.23047779]
[1744403125340,6.43361192,1569.9,1569.6,9.85953779]
[1744403126679,6.43361192,1569.9,1569.6,9.85951779]
[1744403127184,6.43361192,1569.9,1569.6,16.23045779]
[1744403127948,6.43361192,1569.9,1569.6,9.85951779]
[1744403128367,7.01461192,1569.9,1569.6,9.85951779]
[1744403129480,7.01461192,1569.9,1569.6,16.23044779]
[1744403130584,6.27,1569.8,1569.6,16.23044779]
[1744403131189,6.27,1569.8,1569.6,9.85951779]
[1744403131482,7.65576592,1569.8,1569.6,6.85951779]
[1744403131676,7.65576592,1569.8,1569.6,0.48859779]
[1744403131979,6.95297,1569.4,1569.2,4.26534595]
[1744403132148,6.95297,1569.4,1569.2,4.74920458]
[1744403132149,6.27,1569.3,1569.2,4.74920458]
[1744403132356,6.27,1569.3,1569.2,11.12187458]
[1744403133886,6.27,1569.3,1569.2,6.85652863]
[1744403134608,0.06367192,1569.5,1569.3,12.74394]
[1744403134872,6.271,1569.5,1569.4,7.16736]
[1744403135092,0.06367192,1569.7,1569.5,3.0]
[1744403135290,6.271,1569.6,1569.4,7.16736]
[1744403135585,6.271,1569.6,1569.5,6.37141]
[1744403135748,13.85673719,1569.6,1569.3,3.0]
[1744403136083,0.06367192,1569.5,1569.2,13.22888863]
[1744403136748,0.06367192,1569.5,1569.3,6.37223]
[1744403136967,0.06367192,1569.5,1569.2,12.74503]
[1744403137642,0.06367192,1569.5,1569.1,3.7779]
[1744403137843,0.81858583,1569.5,1568.8,8.37732874]
[1744403138079,0.581,1569.6,1569.3,6.37197]
[1744403138277,6.271,1569.5,1569.4,6.37162]
[1744403138486,6.271,1569.5,1569.4,10.782922]
[1744403139061,6.271,1569.5,1569.4,10.14576]
[1744403139261,6.271,1569.5,1569.3,12.74416]
[1744403139474,6.271,1569.5,1569.3,6.37206]
[1744403139653,6.271,1569.5,1569.3,12.74422]
[1744403139853,6.271,1569.5,1569.4,6.37186]
[1744403144002,6.95136,1569.8,1569.4,5.45009311]
[1744403144003,0.581,1569.8,1569.4,5.45009311]
[1744403144284,6.272,1569.7,1569.6,6.37088]
[1744403144648,6.272,1569.7,1569.5,3.0]
[1744403144852,0.581,1569.6,1569.3,13.50381]
[1744403145051,6.272,1569.7,1569.4,12.74337]
[1744403145246,7.65800692,1569.7,1569.4,6.37163]
[1744403146701,14.02867692,1569.7,1569.3,13.50376]
[1744403146857,0.581,1569.6,1569.3,6.37213]
[1744403147492,6.95208,1569.6,1569.3,6.37213]
[1744403148196,7.01575192,1569.6,1569.3,6.37213]
[1744403148489,9.11382761,1569.6,1569.3,6.37213]
[1744403149093,2.74274761,1569.6,1569.3,12.74428]
[1744403149294,2.74274761,1569.6,1569.3,6.37213]
[1744403149662,2.74274761,1569.6,1569.4,6.3718]
[1744403149864,0.64467192,1569.6,1569.4,6.3718]
[1744403150862,0.06367192,1569.6,1569.4,6.37175]
[1744403151058,0.06367192,1569.6,1569.4,6.37174]
[1744403153481,0.06367192,1569.6,1569.4,12.74347]
[1744403153802,0.06367192,1569.6,1569.3,6.37214]
[1744403153977,0.82947261,1569.6,1569.3,6.37214]
[1744403154995,0.82947261,1569.6,1569.3,12.74428]
[1744403155164,0.82947261,1569.6,1569.3,6.37214]
[1744403155377,0.82947261,1569.6,1569.2,10.63363851]
[1744403155378,0.581,1569.5,1569.2,3.0]
[1744403155595,0.06367192,1569.4,1569.2,3.0]
[1744403155790,0.06367192,1569.4,1569.1,6.37293]
[1744403155791,6.255,1569.3,1569.1,6.37293]
[1744403158574,6.255,1569.3,1569.1,12.74589]
[1744403159309,6.255,1569.3,1569.1,6.37293]
[1744403159885,6.255,1569.3,1569.1,6.83917126]
[1744403160105,6.255,1569.3,1569.1,13.21214126]
[1744403160288,6.256,1569.3,1569.2,8.45628413]
[1744403160684,6.256,1569.3,1569.2,11.45628413]
[1744403160884,6.256,1569.5,1569.4,6.37181]
[1744403161084,6.256,1569.5,1569.4,7.15301]
[1744403162113,6.256,1569.5,1569.3,13.50425]
[1744403162289,6.256,1569.5,1569.3,13.50431]
[1744403165114,6.256,1569.5,1569.3,6.37206]
[1744403167008,6.88796719,1569.5,1569.3,6.37206]
[1744403167616,6.88796719,1569.5,1569.2,10.20166]
[1744403167994,6.95163911,1569.5,1569.2,10.20166]
[1744403168386,6.95163911,1569.5,1569.2,16.57421]
[1744403168811,6.95163911,1569.5,1569.3,6.37223]
[1744403169000,6.256,1569.5,1569.3,6.37223]
[1744403170324,6.256,1569.5,1569.3,12.74446]
[1744403171009,6.256,1569.5,1569.3,6.37223]
[1744403172484,6.256,1569.5,1569.3,6.37214]
[1744403173224,6.256,1569.5,1569.4,7.15346]
[1744403173522,6.256,1569.5,1569.4,7.74725782]
[1744403174209,6.256,1569.5,1569.4,7.15346]
[1744403174824,0.06367192,1569.8,1569.4,0.7816]
[1744403175022,55.942,1569.9,1569.8,6.37023]
[1744403181134,6.256,1569.9,1569.8,6.37023]
[1744403182929,6.256,1569.9,1569.7,13.22317977]
[1744403183808,0.581,1569.8,1569.6,9.37094]
[1744403184013,0.64467192,1569.8,1569.6,9.37094]
[1744403184649,6.31967192,1569.9,1569.6,9.37093]
[1744403184840,6.31967192,1569.9,1569.6,9.84921938]
[1744403185005,6.31967192,1569.9,1569.7,6.37054]
[1744403185607,6.256,1569.9,1569.7,6.37054]
[1744403186233,6.256,1569.9,1569.7,12.74108]
[1744403186550,6.256,1569.9,1569.8,6.37023]
[1744403189641,6.256,1569.9,1569.6,9.84905938]
[1744403190051,6.41785,1570.4,1569.8,0.7795]
[1744403190347,6.246,1570.1,1569.9,6.36978]
[1744403192380,6.246,1570.1,1569.9,6.36971]
[1744403193584,6.246,1570.1,1569.8,7.14964]
[1744403193785,0.06367192,1570.0,1569.8,6.37017]
[1744403193989,7.45796719,1570.1,1569.9,6.36979]
[1744403194289,0.06367192,1570.2,1570.0,7.16802]
[1744403194454,6.246,1570.3,1570.1,12.73793]
[1744403194653,6.246,1570.3,1570.1,6.36891]
[1744403195160,6.246,1570.3,1570.1,12.73781]
[1744403195364,6.246,1570.3,1570.1,6.3689]
[1744403195687,6.246,1570.3,1570.1,12.73781]
[1744403196789,6.296,1570.4,1570.2,7.19315]
[1744403197286,0.06367192,1570.3,1570.1,7.67983638]
[1744403197485,0.06367192,1570.3,1570.1,14.04875638]
[1744403197687,6.296,1570.4,1570.1,14.04875638]
[1744403201990,6.296,1570.4,1570.2,6.36855]
[1744403204095,6.296,1570.4,1570.2,12.73705]
[1744403204285,6.296,1570.4,1570.2,6.3685]
[1744403204664,6.296,1570.4,1570.3,6.3682]
[1744403204861,0.05,1570.4,1570.3,14.29618279]
[1744403205579,0.05,1570.4,1570.3,14.88725499]
[1744403205785,0.05,1570.4,1570.3,15.21208171]
[1744403206000,0.05,1570.4,1570.3,18.08377405]
[1744403206617,0.06367192,1571.0,1570.8,6.36587]
[1744403206814,6.245,1571.1,1570.8,12.73177]
[1744403207309,6.245,1571.1,1570.8,6.36587]
[1744403207780,7.01007192,1571.0,1570.7,3.0]
[1744403208104,0.64467192,1571.0,1570.7,9.36657]
[1744403208701,0.64467192,1571.0,1570.7,6.36657]
[1744403208916,0.64467192,1571.0,1570.7,6.36645]
[1744403210207,0.64467192,1571.0,1570.7,6.8330008]
[1744403210403,0.64467192,1571.0,1570.7,13.1994508]
[1744403210604,0.581,1571.0,1570.8,6.36613]
[1744403212502,0.581,1571.0,1570.7,8.15295588]
[1744403213005,0.581,1571.0,1570.7,9.03290532]
[1744403213213,6.88967192,1571.1,1570.8,6.36612]
[1744403214168,0.64467192,1571.1,1570.8,6.36605]
[1744403214372,6.243,1571.0,1570.8,6.36605]
[1744403215384,6.243,1571.0,1570.8,12.73211]
[1744403215583,6.243,1571.0,1570.8,12.73212]
[1744403215998,6.243,1571.0,1570.8,12.73211]
[1744403216607,6.243,1571.0,1570.9,6.36577]
[1744403217313,6.242,1571.2,1571.0,13.55163]
[1744403217511,13.18766,1571.2,1570.9,3.0]
[1744403217813,0.06367192,1571.1,1570.9,3.0]
[1744403218013,0.06367192,1571.1,1570.9,9.36571]
[1744403218376,0.06367192,1571.1,1570.8,12.7321]
[1744403218576,0.06367192,1571.1,1570.8,14.43517508]
[1744403218880,6.42864192,1571.1,1570.8,8.06912508]
[1744403219212,6.36538,1571.0,1570.7,17.0315708]
[1744403219414,12.79392192,1571.1,1570.7,17.0315708]
[1744403219921,6.42864192,1571.1,1570.7,17.0315708]
[1744403220574,0.631,1571.4,1570.9,0.7948]
[1744403220780,0.05,1571.4,1571.3,6.36415]
[1744403222182,0.05,1571.4,1571.2,6.3644]
[1744403222385,0.05,1571.4,1571.3,7.13615]
[1744403223781,0.05,1571.4,1571.2,6.36435]
[1744403224013,0.05,1571.4,1571.2,3.0]
[1744403225523,0.05,1571.4,1571.2,17.381386]
[1744403225683,0.05,1571.4,1571.2,4.652426]
[1744403226022,0.05,1571.4,1571.2,3.0]
[1744403227021,0.05,1571.4,1571.3,14.26503279]
[1744403229341,0.05,1571.4,1571.3,10.15305]
[1744403230341,0.05,1571.4,1571.3,14.32866334]
[1744403230540,0.05,1571.4,1571.3,14.26503279]
[1744403230719,0.05,1571.4,1571.3,17.01222702]
[1744403236957,0.05,1571.4,1571.3,17.60121068]
[1744403237740,7.54078,1572.4,1571.6,0.7783]
[1744403237957,6.36067,1572.2,1572.0,3.0]
[1744403238126,0.581,1572.1,1572.0,3.0]
[1744403238438,7.00574192,1572.1,1571.9,3.0]
[1744403238639,13.24474192,1572.1,1571.9,3.0]
[1744403238840,20.86673419,1572.1,1571.9,3.0]
[1744403239039,20.86673419,1572.1,1571.7,12.72484]
[1744403239442,20.86673419,1572.1,1571.8,6.36193]
[1744403239443,8.14447419,1572.1,1571.8,6.36193]
[1744403239768,8.14447419,1572.1,1571.8,13.20441783]
[1744403240153,8.14447419,1572.1,1571.9,6.3617]
[1744403240469,14.56907611,1572.1,1571.8,6.84250783]
[1744403240631,14.56907611,1572.1,1571.8,0.48048783]
[1744403240632,7.81823761,1572.0,1571.8,0.48048783]
[1744403240831,14.50540419,1572.1,1571.7,12.72486]
[1744403241031,14.50540419,1572.1,1571.8,6.36207]
[1744403241241,8.14447419,1572.1,1571.9,6.36171]
[1744403241442,8.14447419,1572.1,1571.9,6.36162]
[1744403242076,8.14447419,1572.1,1571.9,12.72321]
[1744403242363,6.82,1572.1,1571.9,12.72321]
[1744403244673,6.82,1572.1,1571.8,17.31325601]
[1744403244977,6.42499192,1572.0,1571.8,0.47724322]
[1744403245139,6.42499192,1572.0,1571.7,3.0]
[1744403245338,12.78651192,1572.0,1571.7,3.0]
[1744403245671,0.581,1571.9,1571.7,3.0]
[1744403246373,0.581,1571.9,1571.7,3.47648203]
[1744403246537,0.581,1571.9,1571.7,9.83899203]
[1744403247676,0.581,1571.9,1571.7,3.47648203]
[1744403248671,7.00644192,1571.9,1571.7,3.47648203]
[1744403248880,14.90120323,1571.9,1571.7,3.47648203]
[1744403249042,8.47561131,1571.9,1571.7,3.47648203]
[1744403249241,8.53928323,1571.9,1571.7,3.47648203]
[1744403249540,6.36228,1571.8,1571.6,3.0]
[1744403249738,0.64467192,1571.7,1571.4,12.72724]
[1744403249943,6.842,1571.7,1571.4,13.27551019]
[1744403250142,6.842,1571.7,1571.4,13.21188048]
[1744403251580,13.20463,1571.7,1571.4,6.84825048]
[1744403251758,13.20463,1571.7,1571.4,6.91188109]
[1744403252377,13.20463,1571.7,1571.4,6.84825048]
[1744403252378,21.524003,1571.7,1571.4,6.84825048]
[1744403252579,15.161313,1571.7,1571.4,6.91188105]
[1744403252969,13.20463,1571.7,1571.4,6.91188105]
[1744403253356,6.842,1571.7,1571.4,13.27553105]
[1744403253553,6.842,1571.7,1571.4,13.21190048]
[1744403253753,13.20455,1571.7,1571.4,6.84825048]
[1744403253966,13.20455,1571.7,1571.4,6.91188101]
[1744403254374,19.56722,1571.7,1571.4,6.91188101]
[1744403255480,21.523942,1571.7,1571.4,6.84825048]
[1744403256066,6.36334,1571.5,1571.2,0.7538]
[1744403256274,6.42757192,1571.4,1571.2,3.0]